Cogmind - Beta 10.2 @@@ ROGUE MODE // 2021.04.28 @ 16:32:25 Player: ChromeKnight Result: Self-destructed Performance ------------- Evolutions (7) 3500 Regions Visited (13) 2600 Robots Destroyed (176) 880 Value Destroyed (7412) 7412 Prototype IDs (14) 280 Alien Tech Used (0) 0 Bonus (1571) 1571 TOTAL SCORE: 16243 Bonus ------- High Alert Combat Kills 1243 Follower Combat Kills 1026 Met R17 at Cetus 500 Scanned by Researcher 500 Friendly Fire -1698 Cogmind --------- Core Integrity 244/1300 Matter 146/300 Energy 41/100 System Corruption 26% Temperature Cool (0) Movement Core (500) Ox9 Location -3/Testing Parts ------- > --- POWER (2) -------- (None) > --- PROPULSION (5) --- (None) > --- UTILITY (10) ----- Advanced Targeting Computer Advanced Target Analyzer > --- WEAPON (4) ------- Tri-rail Accelerator Tri-rail Accelerator > --- INVENTORY (4) ---- Advanced Launcher Guidance Computer Peak State ------------ > --- POWER ------------ Micro Fission Core Particle Reactor > --- PROPULSION ------- Improved Antigrav System Improved Linear Gravjet Improved Linear Gravjet Combat Antigrav System Combat Antigrav System > --- UTILITY ---------- Advanced Cryofiber Web Advanced Heat Sink Advanced Heat Sink Medium Storage Unit Spectral Analyzer Advanced Targeting Computer Advanced Launcher Guidance Computer Advanced Target Analyzer Advanced Core Analyzer Improved System Restoration Module > --- WEAPON ----------- Gamma Rifle Gamma Rifle Heavy Neutron Cannon Enhanced Nova Cannon > --- INVENTORY -------- Improved Antigrav System Improved Linear Gravjet Improved Linear Gravjet Advanced Launcher Guidance Computer Layered Medium Armor Plating Layered Medium Armor Plating Railgun Fusion Bomb Launcher [Rating: 150] Favorites ----------- Power Quantum Reactor Engine Ion Engine Power Core Micro Fission Core Reactor Quantum Reactor Propulsion Flexi-carbon Leg Leg Flexi-carbon Leg Hover Unit Aerolev Unit Utility Medium Storage Unit Device Advanced Heat Sink Storage Medium Storage Unit Processor Advanced Targeting Computer Protection Centrium Medium Armor Plating Weapon Heavy Assault Rifle Energy Gun Gamma Rifle Energy Cannon Enhanced Nova Cannon Ballistic Gun Heavy Assault Rifle Ballistic Cannon Heavy Gauss Cannon Launcher Improved Grenade Launcher Slashing Weapon Greatsword Build | -11 -10 -10 -9 -9 -8 -7 -6 -5 -5 -5 -4 -3 -3 ------- Run | Scr Mat Min Mat Sto Mat Fac Fac Fac Ext Cet Fac Res Tes Slots Evolved 14 | . . . 2 . 2 2 2 2 . . 2 2 . Power 1 | . . . . . . . 1 . . . . . . Propulsion 3 | . . . . . . 2 1 . . . . . . Utility 8 | . . . 2 . 2 . . 2 . . 1 1 . Weapon 2 | . . . . . . . . . . . 1 1 . Parts Attached 280 | 6 21 2 12 9 25 12 4 1 34 20 35 78 21 Power 39 | 1 2 1 2 1 3 2 3 . 5 6 3 5 5 Engine 12 | 1 2 . 1 1 3 1 . . 1 . . . 2 Core 11 | . . 1 1 . . 1 3 . 4 . . 1 . Reactor 16 | . . . . . . . . . . 6 3 4 3 Propulsion 85 | 2 9 1 2 3 3 3 1 . 12 4 17 24 4 Treads . | . . . . . . . . . . . . . . Leg 62 | 2 9 1 2 3 1 . . . 11 4 17 12 . Wheel . | . . . . . . . . . . . . . . Hover 23 | . . . . . 2 3 1 . 1 . . 12 4 Flight . | . . . . . . . . . . . . . . Utility 67 | 1 2 . 6 1 11 5 . 1 7 3 8 20 2 Device 25 | . 1 . . . 3 2 . 1 3 . 4 11 . Storage 6 | 1 . . 2 1 1 1 . . . . . . . Processor 18 | . . . 4 . 3 . . . 1 . 3 7 . Hackware . | . . . . . . . . . . . . . . Protection 18 | . 1 . . . 4 2 . . 3 3 1 2 2 Artifact . | . . . . . . . . . . . . . . Weapon 89 | 2 8 . 2 4 8 2 . . 10 7 7 29 10 Energy Gun 21 | . . . . . 1 . . . 1 1 3 13 2 Energy Cannon 16 | . . . . . 2 . . . . . 1 8 5 Ballistic Gun 36 | 2 8 . 2 4 3 . . . 5 6 3 3 . Ballistic Cannon 12 | . . . . . 1 . . . 4 . . 5 2 Launcher 3 | . . . . . 1 1 . . . . . . 1 Special Weapon . | . . . . . . . . . . . . . . Impact Weapon . | . . . . . . . . . . . . . . Slashing Weapon 1 | . . . . . . 1 . . . . . . . Piercing Weapon . | . . . . . . . . . . . . . . Special Melee Weapon . | . . . . . . . . . . . . . . Unidentified Prototypes 14 | . . . . . 1 1 . . . 3 1 5 3 Parts Lost 76 | . 1 . 1 7 1 1 . . 15 2 6 17 25 Power 10 | . . . 1 1 . . . . 3 . 1 . 4 Propulsion 24 | . . . . 2 1 . . . 6 1 1 5 8 Utility 19 | . . . . . . 1 . . 2 1 2 6 7 Weapon 23 | . 1 . . 4 . . . . 4 . 2 6 6 Highest Loss Streak 21 | . 1 . 1 4 1 1 . . 10 1 2 7 21 Average Slot Usage (%) 94 | . 91 100 98 93 96 94 93 88 86 99 97 97 74 Engine 3 | . 13 7 . 10 9 4 . . . . . . 1 Core 3 | . . 6 9 . . 2 13 11 7 1 . 1 1 Reactor 3 | . . . . . . . . . . 9 9 6 4 Leg 16 | . 27 28 22 21 14 . . . 9 28 25 14 . Hover 8 | . . . . . 3 30 33 29 13 . . 8 20 Device 10 | . 7 . . . 7 18 13 17 19 12 11 17 11 Storage 7 | . 14 14 11 11 9 7 6 5 5 5 5 4 2 Processor 15 | . . . 32 33 26 7 6 5 7 11 16 21 13 Protection 7 | . . 14 . . 11 10 13 11 9 15 12 1 3 Energy Gun 2 | . . . . . 1 . . . . 2 4 4 7 Energy Cannon 1 | . . . . . 1 . . . . . . 5 3 Ballistic Gun 10 | . 27 28 22 17 11 . . . 5 8 9 3 . Ballistic Cannon 1 | . . . . . . 3 . . 3 . . 2 . Naked Turns . | . . . . . . . . . . . . . . Heaviest Build 92 | 12 18 18 27 21 35 38 38 50 56 84 89 92 79 Greatest Support 118 | 20 20 20 30 30 28 46 57 57 90 90 115 118 103 Greatest Overweight (x) 10 | . 3 . . 1 2 . . . 10 1 1 6 9 Average Overweight (x) . | . . . . . . . . . . . . . . Largest Inventory Capacity 10 | 6 6 6 10 8 8 8 8 8 8 8 8 8 8 Average Capacity 7 | 4 6 6 7 8 8 8 8 8 8 8 8 8 6 Most Carried 8 | 1 6 6 8 8 8 8 8 7 8 8 8 8 8 Average Carried 7 | . 4 6 7 7 7 7 6 6 7 7 7 7 6 Final Capacity 8 | 6 6 6 8 8 8 8 8 8 8 8 8 8 4 Final Carried 8 | 1 6 6 8 7 8 8 8 7 7 8 8 7 1 Class Distribution -------------------- 50% | Mutant 23% | Scavenger-Gunner 16% | Scavenger-Mutant 6% | Scavenger-Tank Dominant Class ---------------- Mutant | -10/Materials Mutant | -10/Mines Mutant | -9/Materials Mutant | -9/Storage Mutant | -8/Materials Mutant | -7/Factory Mutant | -6/Factory Mutant | -5/Factory Scavenger-Mutant | -5/Extension Scavenger-Mutant | -5/Cetus Scavenger-Tank | -4/Factory Scavenger-Gunner | -3/Research Scavenger-Mutant | -3/Testing Resources | -11 -10 -10 -9 -9 -8 -7 -6 -5 -5 -5 -4 -3 -3 ----------- Run | Scr Mat Min Mat Sto Mat Fac Fac Fac Ext Cet Fac Res Tes Matter Collected 6465 | 183 362 346 347 329 439 382 18 242 933 688 818 1087 291 Remotely . | . . . . . . . . . . . . . . Salvage Created 8692 | . 340 203 722 792 739 296 18 125 1100 746 1460 1623 528 Parts 429 | . 30 18 37 65 43 11 2 6 32 28 69 68 20 Haulers Intercepted 9 | . . . 2 2 3 1 . . . . . 1 . Recyclers Shooed 10 | . 1 3 1 . 1 . . . 1 . . 1 2 Parts Field Recycled . | . . . . . . . . . . . . . . Retrieved Matter . | . . . . . . . . . . . . . . Parts Self-Destructed . | . . . . . . . . . . . . . . Prevented . | . . . . . . . . . . . . . . Kills | -11 -10 -10 -9 -9 -8 -7 -6 -5 -5 -5 -4 -3 -3 ------- Run | Scr Mat Min Mat Sto Mat Fac Fac Fac Ext Cet Fac Res Tes Combat Hostiles Destroyed 124 | . 9 5 8 14 10 6 . 4 12 11 19 19 7 Melee 5 | . . . . . . 1 . 4 . . . . . Guns 82 | . 9 5 8 14 8 . . . 5 11 17 4 1 Cannons 28 | . . . . . 2 3 . . 7 . . 14 2 AOE 7 | . . . . . . 2 . . . . 1 . 4 Classes Destroyed 15 | . 4 1 3 2 . 2 . . 1 . 1 . 1 Worker 10 | . 2 . 1 1 . . 1 1 . . 3 1 . Builder 9 | . . . . 4 1 . . . 1 . 3 . . Tunneler 5 | . . 3 1 . 1 . . . . . . . . Hauler 9 | . . . 2 2 3 1 . . . . . 1 . Recycler 8 | . . . 2 . . 1 . . 3 . . 1 1 Operator 1 | . . . . . . . . . . . . . 1 Watcher 8 | . 2 . . 1 . . . . . 2 1 2 . Swarmer 17 | . 3 3 . 3 . . . 4 . 4 . . . Grunt 50 | . 6 2 5 4 7 3 . . 6 2 7 4 4 Brawler 3 | . . . . . . 1 . . . 1 1 . . Duelist 1 | . . . . 1 . . . . . . . . . Protector 1 | . . . . . . . . . . . 1 . . Sentry 26 | . . . 3 6 3 1 . . 4 . 4 5 . Hunter 8 | . . . . . . . . . 1 . 4 2 1 Programmer 15 | . . . . . . 1 . . . 2 2 8 2 Cetus Guard 2 | . . . . . . . . . . 2 . . . Thug 2 | . . . . . . . . . 1 1 . . . Best Kill Streak 6 | . 3 3 3 4 3 4 1 4 4 6 6 6 5 Combat Bots Only 6 | . 3 3 2 3 2 4 . 4 4 6 5 5 5 Max Kills in Single Turn 3 | . 2 1 2 1 2 1 1 1 2 1 3 1 3 Gunslinging . | . . . . . . . . . . . . . . Exploded 3 | . . . . . . 1 . . . . 1 . 3 Melee 1 | . . . . . . 1 . 1 . . . . . Uniques/NPCs Destroyed 1 | . . . . . . . . . . 1 . . . A7 (-5/Cetus) Combat | -11 -10 -10 -9 -9 -8 -7 -6 -5 -5 -5 -4 -3 -3 -------- Run | Scr Mat Min Mat Sto Mat Fac Fac Fac Ext Cet Fac Res Tes Damage Taken 17295 | . 454 160 421 1112 970 504 . 576 1405 1169 2975 4310 3239 Core 2239 | . 21 13 112 254 247 114 . 58 137 89 138 461 595 Absorbed by Shields 308 | . . . . . . . . . . 308 . . . Core Remaining (%) 73 | 100 . 86 . 8 55 83 100 . . 71 88 . . Volleys Fired 518 | . 37 22 37 55 50 18 . . 57 60 67 85 30 Largest 4 | . 2 2 2 2 2 2 . . 2 2 3 4 3 Hottest 380 | . 46 46 46 46 98 81 . . 114 115 150 380 260 Shots Fired 1098 | . 68 44 74 93 91 24 . . 104 114 177 255 54 Gun 853 | . 68 44 74 93 83 . . . 37 114 177 129 34 Cannon 235 | . . . . . 6 18 . . 67 . . 126 18 Launcher 10 | . . . . . 2 6 . . . . . . 2 Special . | . . . . . . . . . . . . . . Kinetic 789 | . 68 44 74 93 71 18 . . 104 102 118 95 2 Thermal 232 | . . . . . 18 . . . . 12 47 139 16 Explosive 10 | . . . . . 2 6 . . . . . . 2 Electromagnetic 67 | . . . . . . . . . . . 12 21 34 Robot Hit Streak 38 | . 28 3 18 31 38 7 . . 8 13 7 8 9 Robot Miss Streak 8 | . 5 4 2 2 2 4 . . 8 4 4 3 3 Penetration Max 1 | . . . . . . . . . 1 1 1 1 . Secondary Targets 8 | . 2 1 1 . 1 . . . . . 2 . 1 Max Gunslinging Chain 1 | . 1 1 1 . 1 . . . . . 1 . 1 Shots Hit Robots 683 | . 47 22 61 75 73 28 2 13 42 80 105 104 31 Core Hits 305 | . 15 12 21 31 28 14 1 3 30 29 50 58 13 Critical Hits 75 | . . . 1 1 . . . . 17 20 21 11 4 Critical Kills 29 | . . . . 1 . . . . 9 6 8 4 1 Critical Parts Destroyed 34 | . . . 1 . . . . . 4 10 13 3 3 Melee Attacks 46 | . . . . . . 17 2 22 5 . . . . Impact . | . . . . . . . . . . . . . . Slashing 46 | . . . . . . 17 2 22 5 . . . . Piercing . | . . . . . . . . . . . . . . Sneak Attacks 5 | . . . . . . 2 2 1 . . . . . Combat Hostiles . | . . . . . . . . . . . . . . Follow-up Attacks . | . . . . . . . . . . . . . . Damage Inflicted 20448 | . 613 313 859 1163 1173 1720 328 797 1264 2316 3628 3819 2455 Guns 11552 | . 613 313 859 1149 1066 . . . 523 2316 2854 1456 403 Cannons 3902 | . . . . . 107 380 . . 686 . . 2188 541 Explosions 2590 | . . . . . . 401 . . . . 774 . 1415 Melee 2119 | . . . . . . 939 328 797 55 . . . . Ramming 285 | . . . . 14 . . . . . . . 175 96 Kinetic 10025 | . 613 313 859 1149 854 380 . . 1209 1992 1649 971 36 Thermal 6145 | . . . . . 319 . . . . 324 1520 2357 1625 Explosive 944 | . . . . . . 401 . . . . 248 . 295 Electromagnetic 930 | . . . . . . . . . . . 211 316 403 Impact . | . . . . . . . . . . . . . . Slashing 2119 | . . . . . . 939 328 797 55 . . . . Piercing . | . . . . . . . . . . . . . . Highest Corruption 28 | . . . . 2 . . . . 6 10 3 28 28 Average Corruption 9 | . . . . 2 . . . . 4 9 2 9 25 Corruption Purged 15 | . . . . . . . . . . . . 9 6 Effects 184 | . . . . 1 . . . . 15 35 17 74 42 Message Errors 28 | . . . . . . . . . 3 4 3 12 6 Matter Fused 36 | . . . . . . . . . 1 7 6 17 5 Heat Flow Errors 12 | . . . . . . . . . 4 . 3 3 2 Energy Discharges 16 | . . . . 1 . . . . 1 3 . 7 4 Parts Rejected 4 | . . . . . . . . . . 1 . 2 1 Data Loss (minor) 10 | . . . . . . . . . 1 3 1 3 2 Data Loss (major) 9 | . . . . . . . . . 1 3 . 5 . Misfires 2 | . . . . . . . . . . . . 1 1 Alerts 1 | . . . . . . . . . . . . . 1 Misdirections 12 | . . . . . . . . . . 1 . 3 8 Targeting Errors 47 | . . . . . . . . . 4 12 4 16 11 Weapon Failures 7 | . . . . . . . . . . 1 . 5 1 Overload Shots . | . . . . . . . . . . . . . . Overflow Damage 888 | . . . . . . 277 . 246 . . 31 46 288 Projectiles 37 | . . . . . . . . . . . . . 37 Explosions 266 | . . . . . . 1 . . . . 31 . 234 Melee 585 | . . . . . . 276 . 246 . . . 46 17 Knockbacks 10 | . . . . . . 1 . . 5 . . 3 1 Impact 1 | . . . . . . . . . . . . . 1 Kinetic 9 | . . . . . . 1 . . 5 . . 3 . Secondary . | . . . . . . . . . . . . . . Self-Inflicted Damage 766 | . . . . 9 . 32 . . . . 438 87 200 Shots 10 | . . . . . . 1 . . . . 6 . 3 Rammed 10 | . . . . 1 . . . . . . . 5 4 Targets Rammed 12 | . . . . 3 . . . . . . . 5 4 Kicked 2 | . . . . 2 . . . . . . . . . Crushed . | . . . . . . . . . . . . . . Highest Temperature 468 | . 19 27 18 7 72 8 . . 197 77 213 468 231 Average Temperature 76 | . 8 14 7 2 21 6 . . 46 34 74 160 51 Received Heat Transfer 2391 | . 162 66 198 309 486 195 . . 270 87 273 264 81 Effects 6 | . . . . . . . . . . . 2 4 . Shutdowns 3 | . . . . . . . . . . . . 3 . Interference 2 | . . . . . . . . . . . 2 . . Damage (minor) 1 | . . . . . . . . . . . . 1 . Siege Activations . | . . . . . . . . . . . . . . Robots Corrupted 2 | . . . . . . . . . . . 1 . 1 Combat Hostiles 1 | . . . . . . . . . . . 1 . . Parts Fried 6 | . . . . . . . . . . 2 . . 4 Impact Corruptions 4 | . . . . . . . . . . . . 2 2 Robots Melted 1 | . . . . . . . . . . . . 1 . Combat Hostiles 1 | . . . . . . . . . . . . 1 . Parts Melted 8 | . . . 1 . 1 . . . 1 . . 4 1 Heat Transferred 5774 | . . . . . 592 . . . . 407 1510 2065 1200 Parts Sabotaged . | . . . . . . . . . . . . . . Parts Stolen . | . . . . . . . . . . . . . . Parts Stripped . | . . . . . . . . . . . . . . Power Chain Reactions 1 | . . . . . . . . . . . 1 . . Missiles Intercepted . | . . . . . . . . . . . . . . Alert | -11 -10 -10 -9 -9 -8 -7 -6 -5 -5 -5 -4 -3 -3 ------- Run | Scr Mat Min Mat Sto Mat Fac Fac Fac Ext Cet Fac Res Tes Peak Influence 1146 | . 237 147 237 480 462 817 484 360 437 604 1146 773 742 Initial 533 | . . 52 57 100 170 210 399 236 176 199 292 533 398 Average 392 | . 101 67 124 279 268 532 424 283 241 448 667 652 518 Maximum Alert Level 4 | . 1 . 1 2 2 3 2 1 2 2 4 3 3 Low Security (%) 28 | 100 90 100 85 24 23 . . . 41 4 . . . Level 1 25 | . 9 . 14 69 67 32 56 100 50 15 19 . 11 Level 2 32 | . . . . 6 9 28 43 . 8 80 46 69 79 Level 3 12 | . . . . . . 39 . . . . 31 30 8 Level 4 . | . . . . . . . . . . . 2 . . Level 5 . | . . . . . . . . . . . . . . High Security . | . . . . . . . . . . . . . . Max Security . | . . . . . . . . . . . . . . Squads Dispatched 38 | . 3 . 2 4 4 1 1 1 4 . 8 5 5 Investigation 6 | . 1 . 1 . . 1 . 1 . . 2 . . Extermination 8 | . . . . . . . . . . . 2 5 1 Reinforcement 17 | . 2 . 1 2 4 . 1 . 4 . . . 3 Assault 4 | . . . . . . . . . . . 3 . 1 Garrison 3 | . . . . 2 . . . . . . 1 . . Intercept . | . . . . . . . . . . . . . . Construction Impeded 1 | . . . . . . . . . 1 . . . . Haulers Reinforced . | . . . . . . . . . . . . . . Stealth | -11 -10 -10 -9 -9 -8 -7 -6 -5 -5 -5 -4 -3 -3 --------- Run | Scr Mat Min Mat Sto Mat Fac Fac Fac Ext Cet Fac Res Tes Distress Signals 12 | . 2 . 3 3 1 . . 1 . 2 . . . Communications Jammed 1 | . . . . . 1 . . . . . . . . Distress Signals . | . . . . . . . . . . . . . . Times Spotted 234 | . 23 8 19 28 22 13 3 6 18 22 22 30 20 Peak Tracking Total 7 | . 5 3 4 5 7 4 3 5 3 6 5 6 6 Tactical Retreats 11 | . 1 . 1 2 4 . . . . . . 2 1 Traps | -11 -10 -10 -9 -9 -8 -7 -6 -5 -5 -5 -4 -3 -3 ------- Run | Scr Mat Min Mat Sto Mat Fac Fac Fac Ext Cet Fac Res Tes Traps Triggered 13 | . 4 . 1 1 . 1 . . 2 . 2 1 1 Indirectly . | . . . . . . . . . . . . . . Trap Hack Attempts . | . . . . . . . . . . . . . . Triggered . | . . . . . . . . . . . . . . Disarmed . | . . . . . . . . . . . . . . Reprogrammed . | . . . . . . . . . . . . . . Reused . | . . . . . . . . . . . . . . Traps Extracted . | . . . . . . . . . . . . . . Installed . | . . . . . . . . . . . . . . Triggered 1 | . . . . . . . . . . . 1 . . Machines | -11 -10 -10 -9 -9 -8 -7 -6 -5 -5 -5 -4 -3 -3 ---------- Run | Scr Mat Min Mat Sto Mat Fac Fac Fac Ext Cet Fac Res Tes Machines Disabled 28 | . . . . . . 2 . . 1 2 13 3 7 Max in Single Turn 9 | . . . . . . 1 . . 1 1 9 1 1 Garrison Access 2 | . . . . . . . . . . . 1 1 . Energy Cycler 1 | . . . . . . . . . 1 . . . . Machines Sabotaged . | . . . . . . . . . . . . . . Garrisons Compromised . | . . . . . . . . . . . . . . Overloaded Fab Kills . | . . . . . . . . . . . . . . Fab Network Shutdowns 1 | . . . . . . 1 . . . . . . . Hacking | -11 -10 -10 -9 -9 -8 -7 -6 -5 -5 -5 -4 -3 -3 --------- Run | Scr Mat Min Mat Sto Mat Fac Fac Fac Ext Cet Fac Res Tes Machines Accessed 25 | . 3 . 2 5 1 2 . 1 5 1 1 4 . Terminals 18 | . 3 . 2 5 1 . . 1 5 1 . . . Fabricators 4 | . . . . . . 1 . . . . . 3 . Repair Stations . | . . . . . . . . . . . . . . Recycling Units . | . . . . . . . . . . . . . . Scanalyzers . | . . . . . . . . . . . . . . Garrison Access 3 | . . . . . . 1 . . . . 1 1 . Total Hacks 44 | . 4 . 4 6 2 4 . 3 9 1 3 8 . Successful 15 | . 2 . 1 3 1 1 . 1 2 . . 4 . Failed 29 | . 2 . 3 3 1 3 . 2 7 1 3 4 . Catastrophic 5 | . . . . . . 1 . 1 . 1 1 1 . Database Lockouts . | . . . . . . . . . . . . . . Manual 8 | . 2 . 4 . . . . . . 2 . . . Terminals 29 | . 4 . 4 6 2 . . 3 9 1 . . . Fabricators 8 | . . . . . . 1 . . . . . 7 . Repair Stations . | . . . . . . . . . . . . . . Recycling Units . | . . . . . . . . . . . . . . Scanalyzers . | . . . . . . . . . . . . . . Garrison Access 7 | . . . . . . 3 . . . . 3 1 . Terminal Hacks 10 | . 2 . 1 3 1 . . 1 2 . . . . Part Schematic 1 | . . . . . . . . . 1 . . . . Robot Analysis 3 | . 1 . . . 1 . . 1 . . . . . Open Door 4 | . . . . 3 . . . . 1 . . . . Recall Reinforcements 1 | . . . 1 . . . . . . . . . . Zone Layout 1 | . 1 . . . . . . . . . . . . Fabricator Hacks 4 | . . . . . . 1 . . . . . 3 . Load Schematic 1 | . . . . . . . . . . . . 1 . Build 3 | . . . . . . 1 . . . . . 2 . Repair Station Hacks . | . . . . . . . . . . . . . . Recycling Unit Hacks . | . . . . . . . . . . . . . . Scanalyzer . | . . . . . . . . . . . . . . Garrison Access Hacks 1 | . . . . . . . . . . . . 1 . Seal Access 1 | . . . . . . . . . . . . 1 . Unauthorized Hacks . | . . . . . . . . . . . . . . Terminals . | . . . . . . . . . . . . . . Fabricators . | . . . . . . . . . . . . . . Repair Stations . | . . . . . . . . . . . . . . Recycling Units . | . . . . . . . . . . . . . . Scanalyzers . | . . . . . . . . . . . . . . Garrison Access . | . . . . . . . . . . . . . . Data Cores Recovered . | . . . . . . . . . . . . . . Used . | . . . . . . . . . . . . . . Hacking Detections 18 | . 3 . 1 3 1 1 . 1 4 1 1 2 . Full Trace Events 3 | . . . . . . 1 . 1 . . 1 . . Feedback Events . | . . . . . . . . . . . . . . Feedback Blocked . | . . . . . . . . . . . . . . Robot Schematics Acquired . | . . . . . . . . . . . . . . Robots Built 1 | . . . . . . 1 . . . . . . . Matter 153 | . . . . . . 153 . . . . . . . Time 81 | . . . . . . 81 . . . . . . . Total Robot Build Rating 1 | . . . . . . 1 . . . . . . . Part Schematics Acquired 1 | . . . . . . . . . 1 . . . . Parts Built 2 | . . . . . . . . . . . . 2 . Matter 534 | . . . . . . . . . . . . 534 . Time 133 | . . . . . . . . . . . . 133 . Total Part Build Rating 17 | . . . . . . . . . . . . 17 . Parts Repaired . | . . . . . . . . . . . . . . Time . | . . . . . . . . . . . . . . Parts Recycled . | . . . . . . . . . . . . . . Recycled Matter . | . . . . . . . . . . . . . . Retrieved Matter . | . . . . . . . . . . . . . . Retrieved Components . | . . . . . . . . . . . . . . Parts Scanalyzed . | . . . . . . . . . . . . . . Part Schematics Acquired . | . . . . . . . . . . . . . . Parts Damaged . | . . . . . . . . . . . . . . Bothacking | -11 -10 -10 -9 -9 -8 -7 -6 -5 -5 -5 -4 -3 -3 ------------ Run | Scr Mat Min Mat Sto Mat Fac Fac Fac Ext Cet Fac Res Tes Used RIF Installer . | . . . . . . . . . . . . . . Robots Hacked . | . . . . . . . . . . . . . . Non-combat . | . . . . . . . . . . . . . . Combat . | . . . . . . . . . . . . . . Robot Hacks Applied . | . . . . . . . . . . . . . . Relay Couplers Released 4 | . . . . . . . . . . . 4 . . Machine Destruction 4 | . . . . . . . . . . . 4 . . Robots Rewired 13 | . . . . . . . . . 13 . . . . Allies Hacked 1 | . . . . . . . . . . 1 . . . Hacks Repelled . | . . . . . . . . . . . . . . Allies | -11 -10 -10 -9 -9 -8 -7 -6 -5 -5 -5 -4 -3 -3 -------- Run | Scr Mat Min Mat Sto Mat Fac Fac Fac Ext Cet Fac Res Tes Total Allies 22 | . . 5 . . . 1 . . 16 . . . . Largest Group 8 | . . 4 3 . . 1 1 1 8 5 . . . Highest-Rated Group 290 | . . 54 46 . . 9 8 8 290 256 . . . Highest-Rated Ally 156 | . . 31 16 . . 9 8 8 156 156 . . . Total Orders 6 | . . . . . . 3 3 . . . . . . STAY 1 | . . . . . . . 1 . . . . . . FOLLOW 2 | . . . . . . 1 1 . . . . . . TUNNEL 3 | . . . . . . 2 1 . . . . . . Ally Attacks 149 | . . 14 24 . . . . . 59 52 . . . Total Damage 3137 | . . 213 328 . . . . . 1327 1269 . . . Kills 20 | . . 3 2 . . . . . 6 9 . . . Allies Corrupted 1 | . . . . . . . . . . 1 . . . Allies Melted . | . . . . . . . . . . . . . . Intel | -11 -10 -10 -9 -9 -8 -7 -6 -5 -5 -5 -4 -3 -3 ------- Run | Scr Mat Min Mat Sto Mat Fac Fac Fac Ext Cet Fac Res Tes Robot Analysis Total 3 | . 1 . . . 1 . . 1 . . . . . Derelict Logs Recovered 2 | . . 2 . . . . . . . . . . . Drone Launches . | . . . . . . . . . . . . . . Drone Recoveries . | . . . . . . . . . . . . . . Exploration | -11 -10 -10 -9 -9 -8 -7 -6 -5 -5 -5 -4 -3 -3 ------------- Run | Scr Mat Min Mat Sto Mat Fac Fac Fac Ext Cet Fac Res Tes Turns Passed 9794 | 53 774 733 739 586 746 689 317 277 799 605 1026 1963 487 Spaces Moved 6666 | 40 509 550 437 306 506 802 363 341 547 268 597 1041 359 Core 14 | 6 2 . . . . . . . 3 . . . 3 Treads . | . . . . . . . . . . . . . . Legs 3907 | 34 507 550 437 306 299 . . . 198 268 597 711 . Wheels . | . . . . . . . . . . . . . . Hover 2745 | . . . . . 207 802 363 341 346 . . 330 356 Flight . | . . . . . . . . . . . . . . Fastest Speed 24 | 50 120 120 120 120 46 38 34 34 34 120 120 24 44 Average Speed 89 | 109 120 120 120 120 105 38 34 34 74 120 123 97 49 Slowest Speed 550 | 120 200 120 120 150 180 38 34 34 550 150 150 530 500 Overloaded Moves . | . . . . . . . . . . . . . . Propulsion Burnouts . | . . . . . . . . . . . . . . Robots Hopped . | . . . . . . . . . . . . . . Cave-ins Triggered 3 | . . . . . . . . . 1 . . 2 . Exploration Rate (%) 40 | 3 75 99 41 56 55 32 9 10 60 56 20 34 22 Regions Visited 13 Branch Regions 5 Pre-discovered Areas 1 | . . 1 . . . . . . . . . . . Known Exits Taken 7 | . . . . . 1 1 1 1 1 1 1 . . Unknown Exits Taken 6 | 1 1 1 1 1 . . . . . . . 1 . Scrap Searched 1 | . . 1 . . . . . . . . . . . Spaces Dug 54 | . . . . . 13 . . 1 16 . . 20 4 Terrain Destroyed 416 | . . . . . 21 30 . 1 51 25 141 91 56 Melee 1 | . . . . . . . . 1 . . . . . Projectile 220 | . . . . . 1 2 . . 51 25 40 91 10 AOE 195 | . . . . . 20 28 . . . . 101 . 46 Terrain Rammed 1 | . . . . 1 . . . . . . . . . Walls Destroyed . | . . . . . . . . . . . . . . Machines Disabled . | . . . . . . . . . . . . . . Actions | -11 -10 -10 -9 -9 -8 -7 -6 -5 -5 -5 -4 -3 -3 --------- Run | Scr Mat Min Mat Sto Mat Fac Fac Fac Ext Cet Fac Res Tes Total 9517 | 46 607 580 580 429 633 1131 552 457 843 470 760 1816 613 Wait 1535 | . 18 3 74 52 14 268 179 93 22 91 17 519 185 Move 6652 | 39 508 549 436 305 505 801 362 340 546 267 596 1039 359 Hop . | . . . . . . . . . . . . . . Pick Up 94 | 1 9 1 9 1 13 4 2 1 7 9 12 22 3 Fast Attach 128 | 6 10 1 4 5 10 4 . . 18 11 9 40 10 Attach 46 | . . . . 1 6 3 2 1 6 . 5 12 10 Detach 8 | . . . . . . . . . . . . 4 4 Swap 107 | . 11 1 8 3 10 5 2 . 10 9 21 26 1 Drop 207 | . 14 3 12 3 25 11 3 . 16 23 28 63 6 Fire 518 | . 37 22 37 55 50 18 . . 57 60 67 85 30 Melee 46 | . . . . . . 17 2 22 5 . . . . Ram 11 | . . . . 1 . . . . . . . 5 5 Kick 3 | . . . . 3 . . . . . . . . . Crush . | . . . . . . . . . . . . . . Escape Stasis 6 | . . . . . . . . . . . 5 1 . Rewire 156 | . . . . . . . . . 156 . . . . Trap . | . . . . . . . . . . . . . . Miscellaneous . | . . . . . . . . . . . . . . Route ------- -11/Scrapyard -10/Materials (discovered 3 exits: *Mat x2 / [*Min]) -10/Mines (discovered 2 exits: *Mat x2) -9/Materials -9/Storage -8/Materials -7/Factory (discovered 2 exits: *Fac x2) -6/Factory -5/Factory -5/Extension (discovered 2 exits: *Fac / *Cet) -5/Cetus (discovered 2 exits: *Fac / [*Arc]) -4/Factory -3/Research -3/Testing History --------- Turn | Location | Event 6 | -11/Scrapyard | Discovered new exit (range 15) 54 | -11/Scrapyard | Entered Materials 298 | -10/Materials | Discovered new exit (range 15) 302 | -10/Materials | Build established: Mutant 531 | -10/Materials | Discovered new exit (range 16) 717 | -10/Materials | Discovered new exit (range 11) 828 | -10/Materials | Entered Mines 899 | -10/Mines | Discovered new exit (range 15) 974 | -10/Mines | Discovered new exit (range 10) 989 | -10/Mines | Learned location of Zion (-6) 1012 | -10/Mines | Found a hidden stash of uninstalled traps 1194 | -10/Mines | Learned Materials terminal intel 1486 | -10/Mines | Assisted by bots powering up and referring to "LRC-V3" 1561 | -10/Mines | Entered Materials 1561 | -9/Materials | Accompanied by 3 allies 1561 | -9/Materials | Evolved 2 slots: Utility x2 1562 | -9/Materials | Loaded intel: 12 terminal locations 2169 | -9/Materials | Discovered new exit (range 11) 2300 | -9/Materials | Entered Storage 2742 | -9/Storage | Core integrity fell below 50% 2755 | -9/Storage | Garrison activated, responded to threat 2766 | -9/Storage | Lost 4 parts (1p1n2w) 2851 | -9/Storage | Discovered new exit (range 16) 2883 | -9/Storage | Core integrity fell below 20% 2886 | -9/Storage | Entered Materials 2886 | -8/Materials | Evolved 2 slots: Utility x2 3584 | -8/Materials | Discovered new exit (range 15) 3631 | -8/Materials | Identified exit to Factory 3632 | -8/Materials | Entered Factory 3632 | -7/Factory | Evolved 2 slots: Propulsion x2 3733 | -7/Factory | Fabricated T-07 Excavator? 3949 | -7/Factory | Discovered new exit (range 12) 3969 | -7/Factory | Identified exit to Factory 4033 | -7/Factory | Local fabrication network quarantined 4290 | -7/Factory | Discovered exit to Factory (range 4) 4321 | -7/Factory | Entered another Factory area 4321 | -6/Factory | Accompanied by 1 ally 4321 | -6/Factory | Evolved 2 slots: Power x1, Propulsion x1 4629 | -6/Factory | Discovered new exit (range 5) 4630 | -6/Factory | Identified exit to Factory 4635 | -6/Factory | Found Launcher Loader 4638 | -6/Factory | Entered another Factory area 4638 | -5/Factory | Accompanied by 1 ally 4638 | -5/Factory | Evolved 2 slots: Utility x2 4902 | -5/Factory | Discovered new exit (range 15) 4915 | -5/Factory | Identified exit to Extension 4915 | -5/Factory | Entered Extension 4921 | -5/Extension | Disrupted transfer network 5127 | -5/Extension | Rescued a captive Derelict 5128 | -5/Extension | Rescued a captive Derelict 5252 | -5/Extension | Crushed by falling debris 5366 | -5/Extension | Lost 10 parts (2p5n1u2w) 5577 | -5/Extension | Energy Cycler disabled 5580 | -5/Extension | Rescued a captive Derelict 5609 | -5/Extension | Rescued A7 5631 | -5/Extension | Build established: Scavenger-Mutant 5680 | -5/Extension | Discovered new exit (range 10) 5681 | -5/Extension | Discovered new exit (range 6) 5705 | -5/Extension | Identified exit to Cetus 5714 | -5/Extension | Entered Cetus 5714 | -5/Cetus | Accompanied by 5 allies (A7) 5719 | -5/Cetus | Acquired a Cetus Manufacturing Module code from A7 5731 | -5/Cetus | Spotted Cetus Guard 5731 | -5/Cetus | Spotted Cetus Guard 5733 | -5/Cetus | Spotted Cetus Guard 5739 | -5/Cetus | Allies destroyed Cetus Guard 5739 | -5/Cetus | Spotted Cetus Guard 5751 | -5/Cetus | Allies destroyed Cetus Guard 5761 | -5/Cetus | Allies destroyed Cetus Guard 5762 | -5/Cetus | Destroyed Cetus Guard 5812 | -5/Cetus | Cetus Manufacturing Module disabled 5832 | -5/Cetus | System corruption reached 10% 5947 | -5/Cetus | Failed to start Cetus Manufacturing Module 6082 | -5/Cetus | Discovered new exit (range 16) 6108 | -5/Cetus | Spotted Cetus Guard 6108 | -5/Cetus | Spotted Cetus Guard 6118 | -5/Cetus | Allies destroyed Cetus Guard 6118 | -5/Cetus | Spotted Cetus Guard 6126 | -5/Cetus | Allies destroyed Cetus Guard 6127 | -5/Cetus | Spotted Cetus Guard 6131 | -5/Cetus | Destroyed Cetus Guard 6135 | -5/Cetus | Allies destroyed Cetus Guard 6150 | -5/Cetus | Discovered new exit (range 15) 6156 | -5/Cetus | Met Revision 17 6275 | -5/Cetus | Destroyed A7 6280 | -5/Cetus | Extracted ID and sensor layout for unrecognized location from A7's data core 6317 | -5/Cetus | Identified exit to Factory 6319 | -5/Cetus | Entered Factory 6319 | -4/Factory | Evolved 2 slots: Utility x1, Weapon x1 6428 | -4/Factory | Garrison activated, responded to threat 6610 | -4/Factory | Build established: Scavenger-Tank 7069 | -4/Factory | First assault squad dispatched 7179 | -4/Factory | Discovered new exit (range 11) 7344 | -4/Factory | Identified exit to Research 7345 | -4/Factory | Entered Research 7345 | -3/Research | Evolved 2 slots: Utility x1, Weapon x1 7431 | -3/Research | Build established: Scavenger-Gunner 7711 | -3/Research | Lost 7 parts (3n1u3w) 7863 | -3/Research | Fabricated Enh. Nova Cannon (x1) 8690 | -3/Research | System corruption reached 10% 8731 | -3/Research | Spotted B-86 Titan 8752 | -3/Research | Found Fusion Bomb Launcher 8998 | -3/Research | Fabricated Adv. Core Analyzer (x1) 9139 | -3/Research | Found Prototype Processor 9139 | -3/Research | Identified Spectral Analyzer 9297 | -3/Research | Crushed by falling debris 9304 | -3/Research | Crushed by falling debris 9304 | -3/Research | Discovered new exit (range 10) 9308 | -3/Research | Entered Testing 9335 | -3/Testing | Lost 5 parts (1n3u1w) 9376 | -3/Testing | Found Prototype Energy Cannon 9395 | -3/Testing | Found Prototype Energy Cannon 9512 | -3/Testing | Identified Imp. Potential Cannon 9514 | -3/Testing | Identified Disintegrator 9597 | -3/Testing | First assault squad dispatched 9652 | -3/Testing | Scanned by Researcher 9659 | -3/Testing | Lost 3 parts (1n1u1w) 9730 | -3/Testing | Core integrity fell below 50% 9795 | -3/Testing | Core integrity fell below 20% 9795 | -3/Testing | Self-destructed Last Messages --------------- 09777_ Cmb. Antigrav System destroyed. 09777_ Adv. Launcher Guidance Computer destroyed. 09778_ C-55 Analyst calibrates the Catalytron. 09781_ Acquired Prototype Ballistic Cannon. 09781_ Identified Tri-rail Accelerator. 09785_ Acquired Tri-rail Accelerator. 09786_ System corrupted: Energy discharge (-1). 09786_ Slug penetrates Wall. 09786_ Penetrated by Slug. 09787_ C-55 Analyst calibrates the Catalytron. 09790_ Slug penetrates Wall. 09792_ C-55 Analyst calls for reinforcements. 09792_ ALERT: Hostile activity reported, dispatching reinforcements to area. 09792_ Held in stasis. 09792_ C-55 Analyst is analyzing... 09792_ Penetrated by Slug. 09792_ Held in stasis. 09792_ C-55 Analyst is analyzing... 09794_ Penetrated by Slug. 09794_ Slug penetrates Wall. Map ----- +----------------------------------------------------+ | " ! # """ # + ?????????????? | | " """ R # = #????????????????? | | "" "" """ # #????????????????? | | "" "" # #????????????????? | | ] " """!%* + #????????????????? | | " """ # #????????????????? | | " # #????????????????? | | """ "" "" " # ! #????????????????? | | """T"" """"""##### ###########????????????????? | | #######"" ! # # ?????????????????????????? | | ??????### """ # # #???????????????????? | | ????????# """ + + [ #???????????????????? | | #####???# """ #h # #???????????????????? | | #???# ; h # #???????????????????? | | "" #???# " "" # #? #???????????????????? | | ""S #???# ""S"" # #? #???????????????????? | | "" [##### """" # h#??#####???????????????????? | | = + + # ;#######???????????????????? | | !] # ######+##### ^ #???????????????????? | | ##### ##?# #???????????????????? | | #### ### #???????????????????? | | ! """ # ????????????????? | | ####! ### """ # ????????????????? | | ???#####?# """ #???????????????????? | | ?????????## c #???????????????????? | | ??????????# """ " @ #???????????????????? | | ??????????# """ " ] #???????????????????? | | ??????????# """ """ #???????????????????? | | ??????????# #???????????????????? | | ??????????# """ """ ### #???????????????????? | | ??????????# """ """ ??# #???????????????????? | | ??????????# """ """ ??#c #???????????????????? | | ??????????? ?? ??#A #???????????????????? | | ??????????? ?? ??# #???????????????????? | | ??????????? ?? ???# #???????????????????? | | ???????????? ??? ???# #???????????????????? | | ???????????????####?????# #???????????????????? | | ????????????????????????? #???????????????????? | | ????????????????????????? #???????????????????? | | ????????????????????????? #???????????????????? | | ????????????????????????? ?????????????????????? | | ?????????????????????????????????????????????????? | | ?????????????????????????????????????????????????? | | ?????????????????????????????????????????????????? | | ?????????????????????????????????????????????????? | | ?????????????????????????????????????????????????? | | ?????????????????????????????????????????????????? | | ?????????????????????????????????????????????????? | | ?????????????????????????????????????????????????? | | ?????????????????????????????????????????????????? | +----------------------------------------------------+ Best States ------------- Heat Dissipation 134 Energy Generation 45 Energy Capacity 600 Matter Stores 300 Matter Capacity 300 Sight Range 24 Robot Scan Range 16 Terrain Scan Density 10 Jamming Range 8 Base Temperature (-) 200 Armor Coverage 675 Weapon Shielding 33 Weapon Cycling 15 Evasion (%) 60 Targeting Accuracy 24 Launcher Accuracy 40 Target Analysis 8 Core Analysis 10 Item Schematics ----------------- Adv. Core Analyzer | -5/Extension | Hacked Robot Schematics ------------------ None Fabricated ------------ T-07 Excavator | x1 | -7/Factory | Preloaded Enh. Nova Cannon | x1 | -3/Research | Preloaded Adv. Core Analyzer | x1 | -3/Research Alien Tech Used ----------------- None Achievements -------------- None Challenges ------------ None Game ------ Seed SkeletonCoolingBay Manual? 0 Play Time 01:30:02 Cumulative 173.8 hours Start 2021.04.27 @ 21:41:21 End 2021.04.28 @ 16:32:25 Sessions 3 Manual Loads 0 Difficulty Rogue Special Mode None Game No. 356 Rogue 203 Adventurer 148 Explorer 5 Win Type - Total 3 Types 3/0/0/0/0/0/0/0/0 Lore% 69 Gallery% 80 Achievement% 58 Wizard Run 0 Options --------- ASCII 0 Keyboard 0 Movement Numpad Keybinds 0 Fullscreen 1 Font 14/X11 Map View 84x54 Tactical HUD 1 Map Filters NONE Filters NONE Steam 1 RUN: e08ca4de-c3de-449c-a4bd-03276a0df4cf